fUSD/lending_fUSD_20240425
["ID","MTS","AMOUNT","RATE_DAILY","PERIOD"]
[323483975,1714043442264,-500.0,0.00011544,2]
[323483976,1714043442275,-500.0,0.00011544,2]
[323483977,1714043442286,-500.0,0.00011544,2]
[323483978,1714043442298,-500.0,0.00011544,2]
[323483979,1714043442309,-450.68402175,0.00011544,2]
[323483980,1714043442320,-500.0,0.00011544,2]
[323483981,1714043442330,-500.0,0.00011544,2]
[323483983,1714043442341,-150.0,0.00011544,2]
[323483984,1714043442352,-500.0,0.00011544,2]
[323483986,1714043442363,-500.0,0.00011544,2]
[323483988,1714043442374,-618.51965282,0.00011544,2]
[323483989,1714043442385,-500.0,0.00011544,2]
[323483990,1714043442396,-500.0,0.00011544,2]
[323483991,1714043442411,-500.0,0.00011544,2]
[323483992,1714043442421,-500.0,0.00011544,2]
[323483993,1714043442432,-500.0,0.00011544,2]
[323483994,1714043442443,-500.0,0.00011544,2]
[323483995,1714043442453,-500.0,0.00011544,2]
[323483996,1714043442464,-511.99376292,0.00011544,2]
[323483997,1714043442475,-500.0,0.00011544,2]
[323483999,1714043442486,-506.51453,0.00011544,2]
[323484000,1714043442497,-778.15,0.00011544,2]
[323484001,1714043442507,-625.11254011,0.00011544,2]
[323484003,1714043442518,-500.0,0.00011544,2]
[323484005,1714043442529,-500.0,0.00011544,2]
[323484006,1714043442540,-500.0,0.00011544,2]
[323484007,1714043442551,-500.0,0.00011544,2]
[323484008,1714043442562,-500.0,0.00011544,2]
[323484010,1714043442572,-500.0,0.00011544,2]
[323484012,1714043442583,-500.0,0.00011544,2]
[323484014,1714043442593,-500.0,0.00011544,2]
[323484016,1714043442604,-500.0,0.00011544,2]
[323484018,1714043442614,-150.0,0.00011544,2]
[323484020,1714043442624,-500.0,0.00011544,2]
[323484021,1714043442635,-500.0,0.00011544,2]
[323484022,1714043442646,-500.0,0.00011544,2]
[323484023,1714043442659,-502.55764571,0.00011544,2]
[323484024,1714043442669,-528.91,0.00011544,2]
[323484025,1714043442680,-500.0,0.00011544,2]
[323484026,1714043442691,-632.08477396,0.00011544,2]
[323484027,1714043442701,-500.0,0.00011544,2]
[323484028,1714043442712,-507.5431982,0.00011544,2]
[323484029,1714043442722,-500.0,0.00011544,2]
[323484030,1714043442733,-625.06299057,0.00011544,2]
[323484031,1714043442744,-500.0,0.00011544,2]
[323484032,1714043442755,-511.14202875,0.00011544,2]
[323484033,1714043442765,-500.0,0.00011544,2]
[323484034,1714043442776,-500.0,0.00011544,2]
[323484035,1714043442787,-500.0,0.00011544,2]
[323484036,1714043442797,-500.0,0.00011544,2]
[323484037,1714043442807,-555.52155469,0.00011544,2]
[323484038,1714043442818,-500.0,0.00011544,2]
[323484039,1714043442829,-500.0,0.00011544,2]
[323484040,1714043442840,-558.04291659,0.00011544,2]
[323484041,1714043442851,-505.5527014,0.00011544,2]
[323484042,1714043442861,-500.0,0.00011544,2]
[323484043,1714043442871,-500.0,0.00011544,2]
[323484044,1714043442882,-500.0,0.00011544,2]
[323484045,1714043442893,-500.0,0.00011544,2]
[323484046,1714043442904,-508.02640855,0.00011544,2]
[323484047,1714043442915,-500.0,0.00011544,2]
[323484048,1714043442926,-502.20776197,0.00011544,2]
[323484049,1714043442937,-208.65042021,0.00011544,2]
[323484050,1714043442947,-500.0,0.00011544,2]
[323484051,1714043442957,-613.3092166,0.00011544,2]
[323484052,1714043442967,-500.0,0.00011544,2]
[323484053,1714043442978,-504.3245371,0.00011544,2]
[323484054,1714043442988,-500.0,0.00011544,2]
[323484055,1714043442998,-500.0,0.00011544,2]
[323484056,1714043443008,-500.0,0.00011544,2]
[323484057,1714043443019,-500.0,0.00011544,2]
[323484058,1714043443029,-500.0,0.00011544,2]
[323484059,1714043443039,-630.60210235,0.00011544,2]
[323484060,1714043443050,-500.0,0.00011544,2]
[323484061,1714043443060,-370.58841214,0.00011544,2]
[323484062,1714043443070,-500.0,0.00011544,2]
[323484063,1714043443081,-500.0,0.00011544,2]
[323484064,1714043443091,-500.0,0.00011544,2]
[323484065,1714043443101,-500.0,0.00011544,2]
[323484066,1714043443112,-500.0,0.00011544,2]
[323484068,1714043443122,-500.0,0.00011544,2]
[323484069,1714043443131,-500.0,0.00011544,2]
[323484070,1714043443142,-502.05731684,0.00011544,2]
[323484071,1714043443152,-500.0,0.00011544,2]
[323484072,1714043443166,-500.0,0.00011544,2]
[323484073,1714043443178,-502.58248868,0.00011544,2]
[323484074,1714043443189,-329.11833015,0.00011544,2]
[323484075,1714043443200,-500.0,0.00011544,2]
[323484076,1714043443212,-500.0,0.00011544,2]
[323484077,1714043443222,-500.0,0.00011544,2]
[323484078,1714043443233,-500.0,0.00011544,2]
[323484079,1714043443243,-500.0,0.00011544,2]
[323484080,1714043443254,-500.0,0.00011544,2]
[323484081,1714043443264,-520.00616961,0.00011544,2]
[323484082,1714043443275,-507.20215636,0.00011544,2]
[323484083,1714043443286,-504.50057927,0.00011544,2]
[323484084,1714043443296,-500.0,0.00011544,2]
[323484085,1714043443307,-500.0,0.00011544,2]
[323484086,1714043443319,-501.85259873,0.00011544,2]
[323484087,1714043443329,-500.0,0.00011544,2]
[323484088,1714043443339,-500.0,0.00011544,2]
[323484089,1714043443349,-500.0,0.00011544,2]
[323484090,1714043443360,-500.0,0.00011544,2]
[323484091,1714043443370,-501.32561976,0.00011544,2]
[323484092,1714043443691,-500.0,0.00011544,2]
[323484093,1714043443706,-500.0,0.00011544,2]
[323484094,1714043443715,-500.0,0.00011544,2]
[323484095,1714043443724,-500.0,0.00011544,2]
[323484096,1714043443733,-500.0,0.00011544,2]
[323484097,1714043443743,-500.0,0.00011544,2]
[323484098,1714043443751,-500.0,0.00011544,2]
[323484099,1714043443761,-500.0,0.00011544,2]
[323484100,1714043443770,-500.0,0.00011544,2]
[323484101,1714043443779,-501.51173562,0.00011544,2]
[323484102,1714043443788,-500.0,0.00011544,2]
[323484103,1714043443798,-504.20712253,0.00011544,2]
[323484104,1714043443808,-500.0,0.00011544,2]
[323484105,1714043443818,-500.0,0.00011544,2]
[323484106,1714043443828,-500.0,0.00011544,2]
[323484107,1714043443837,-500.0,0.00011544,2]
[323484108,1714043443847,-500.0,0.00011544,2]
[323484109,1714043443856,-555.92,0.00011544,2]
[323484110,1714043443866,-500.0,0.00011544,2]
[323484111,1714043443876,-504.37770277,0.00011544,2]
[323484112,1714043443885,-500.0,0.00011544,2]
[323484113,1714043443894,-500.0,0.00011544,2]
[323484114,1714043443906,-500.0,0.00011544,2]
[323484115,1714043443917,-500.0,0.00011544,2]
[323484116,1714043443926,-500.0,0.00011544,2]
[323484117,1714043443936,-500.0,0.00011544,2]
[323484118,1714043443945,-500.0,0.00011544,2]
[323484119,1714043443955,-500.0,0.00011544,2]
[323484120,1714043443964,-503.43385913,0.00011544,2]
[323484121,1714043443974,-500.0,0.00011544,2]
[323484122,1714043443983,-501.21596082,0.00011544,2]
[323484123,1714043443993,-500.0,0.00011544,2]
[323484124,1714043444002,-500.0,0.00011544,2]
[323484125,1714043444013,-504.37494568,0.00011544,2]
[323484126,1714043444023,-501.82134565,0.00011544,2]
[323484127,1714043444032,-500.0,0.00011544,2]
[323484128,1714043444041,-500.0,0.00011544,2]
[323484129,1714043444050,-500.0,0.00011544,2]
[323484130,1714043444059,-500.0,0.00011544,2]
[323484131,1714043444068,-500.0,0.00011544,2]
[323484132,1714043444078,-500.0,0.00011544,2]
[323484133,1714043444087,-252.91472118,0.00011544,2]
[323484134,1714043444096,-509.14764831,0.00011544,2]
[323484135,1714043444105,-500.0,0.00011544,2]
[323484136,1714043444114,-304.73832148,0.00011544,2]
[323484137,1714043444123,-500.0,0.00011544,2]
[323484138,1714043444131,-500.0,0.00011544,2]
[323484139,1714043444141,-500.0,0.00011544,2]
[323484140,1714043444150,-497.8035682,0.00011544,2]
[323484141,1714043444162,-502.68404673,0.00011544,2]
[323484142,1714043444171,-500.0,0.00011544,2]
[323484143,1714043444180,-500.0,0.00011544,2]
[323484144,1714043444189,-500.0,0.00011544,2]
[323484145,1714043444199,-500.0,0.00011544,2]
[323484146,1714043444210,-500.0,0.00011544,2]
[323484147,1714043444220,-500.0,0.00011544,2]
[323484148,1714043444229,-466.8761274,0.00011544,2]
[323484149,1714043444238,-500.0,0.00011544,2]
[323484150,1714043444247,-641.6,0.00011544,2]
[323484151,1714043444256,-500.0,0.00011544,2]
[323484152,1714043444265,-500.0,0.00011544,2]
[323484153,1714043444274,-500.0,0.00011544,2]
[323484154,1714043444284,-506.82388022,0.00011544,2]
[323484155,1714043444294,-500.0,0.00011544,2]
[323484156,1714043444303,-500.0,0.00011544,2]
[323484157,1714043444312,-500.0,0.00011544,2]
[323484158,1714043444321,-500.0,0.00011544,2]
[323484159,1714043444330,-500.0,0.00011544,2]
[323484160,1714043444339,-500.0,0.00011544,2]
[323484161,1714043444348,-500.0,0.00011544,2]
[323484162,1714043444357,-420.76452259,0.00011544,2]
[323484163,1714043444366,-276.87277495,0.00011544,2]
[323484164,1714043444375,-500.0,0.00011544,2]
[323484165,1714043444384,-500.0,0.00011544,2]
[323484166,1714043444393,-226.40097436,0.00011544,2]
[323484167,1714043444405,-500.0,0.00011544,2]
[323484168,1714043444415,-500.0,0.00011544,2]
[323484169,1714043444424,-500.0,0.00011544,2]
[323484170,1714043444433,-531.41958543,0.00011544,2]
[323484171,1714043444442,-500.0,0.00011544,2]
[323484172,1714043444451,-460.87604503,0.00011544,2]
[323484173,1714043444460,-500.0,0.00011544,2]
[323484174,1714043444469,-500.0,0.00011544,2]
[323484175,1714043444478,-500.0,0.00011544,2]
[323484176,1714043444487,-225.66667859,0.00011544,2]
[323484177,1714043444496,-500.0,0.00011544,2]
[323484178,1714043444505,-500.0,0.00011544,2]
[323484179,1714043444514,-500.0,0.00011544,2]
[323484180,1714043444524,-500.0,0.00011544,2]
[323484181,1714043444533,-856.99,0.00011544,2]
[323484182,1714043444542,-500.0,0.00011544,2]
[323484183,1714043444551,-500.0,0.00011544,2]
[323484184,1714043444560,-500.0,0.00011544,2]
[323484185,1714043444569,-500.0,0.00011544,2]
[323484186,1714043444579,-500.0,0.00011544,2]
[323484187,1714043444588,-500.0,0.00011544,2]
[323484188,1714043444598,-500.0,0.00011544,2]
[323484189,1714043444607,-500.0,0.00011544,2]
[323484190,1714043444616,-500.0,0.00011544,2]
[323484191,1714043444626,-500.0,0.00011544,2]
[323484192,1714043444635,-500.0,0.00011544,2]
[323484193,1714043444644,-514.40268982,0.00011544,2]
[323484194,1714043444654,-500.0,0.00011544,2]
[323484195,1714043444663,-500.0,0.00011544,2]
[323484196,1714043444672,-500.0,0.00011544,2]
[323484197,1714043444682,-593.83963984,0.00011544,2]
[323484198,1714043444691,-478.46933375,0.00011544,2]
[323484199,1714043444701,-500.0,0.00011544,2]
[323484200,1714043444710,-500.0,0.00011544,2]
[323484201,1714043444720,-500.0,0.00011544,2]
[323484202,1714043444729,-500.0,0.00011544,2]
[323484203,1714043444738,-518.37211945,0.00011544,2]
[323484204,1714043444747,-500.0,0.00011544,2]
[323484205,1714043444756,-500.0,0.00011544,2]
[323484206,1714043444766,-500.0,0.00011544,2]
[323484207,1714043444775,-500.0,0.00011544,2]
[323484208,1714043444783,-500.48198073,0.00011544,2]
[323484209,1714043444793,-500.95671944,0.00011544,2]
[323484210,1714043444802,-577.37,0.00011544,2]
[323484211,1714043444811,-501.19383954,0.00011544,2]
[323484212,1714043444820,-500.0,0.00011544,2]
[323484213,1714043444830,-500.0,0.00011544,2]
[323484214,1714043444838,-500.0,0.00011544,2]
[323484215,1714043444847,-1533.85,0.00011544,2]
[323484216,1714043444856,-500.0,0.00011544,2]
[323484217,1714043444866,-500.0,0.00011544,2]
[323484218,1714043444875,-500.0,0.00011544,2]
[323484219,1714043444884,-610.28748372,0.00011544,2]
[323484220,1714043444893,-500.0,0.00011544,2]
[323484221,1714043444902,-500.0,0.00011544,2]
[323484222,1714043444912,-500.0,0.00011544,2]
[323484223,1714043444921,-500.0,0.00011544,2]
[323484224,1714043444930,-389.52724426,0.00011544,2]
[323484225,1714043444939,-500.0,0.00011544,2]
[323484226,1714043444949,-500.0,0.00011544,2]
[323484227,1714043444958,-500.0,0.00011544,2]
[323484228,1714043444967,-500.0,0.00011544,2]
[323484229,1714043444976,-500.0,0.00011544,2]
[323484230,1714043444986,-500.0,0.00011544,2]
[323484231,1714043444995,-500.0,0.00011544,2]
[323484232,1714043445004,-500.0,0.00011544,2]
[323484233,1714043445013,-500.0,0.00011544,2]
[323484234,1714043445022,-500.0,0.00011544,2]
[323484235,1714043445031,-500.0,0.00011544,2]
[323484236,1714043445040,-500.0,0.00011544,2]
[323484237,1714043445050,-500.0,0.00011544,2]
[323484238,1714043445059,-555.44,0.00011544,2]
[323484239,1714043445068,-664.62,0.00011544,2]
[323484240,1714043445078,-500.0,0.00011544,2]
[323484241,1714043445087,-500.0,0.00011544,2]
[323484242,1714043445097,-460.67116417,0.00011544,2]
[323484243,1714043445107,-863.12,0.00011544,2]
[323484244,1714043445116,-500.0,0.00011544,2]
[323484245,1714043445127,-501.09331434,0.00011544,2]
[323484246,1714043445137,-500.0,0.00011544,2]
[323484247,1714043445147,-500.0,0.00011544,2]
[323484248,1714043445159,-500.0,0.00011544,2]
[323484249,1714043445169,-500.0,0.00011544,2]
[323484250,1714043445180,-500.0,0.00011544,2]
[323484251,1714043445190,-500.0,0.00011544,2]
[323484252,1714043445205,-500.0,0.00011544,2]
[323484253,1714043445215,-500.0,0.00011544,2]
[323484254,1714043445226,-500.0,0.00011544,2]
[323484255,1714043445237,-503.35288842,0.00011544,2]
[323484256,1714043445248,-529.0,0.00011544,2]
[323484257,1714043445258,-500.0,0.00011544,2]
[323484258,1714043445268,-500.0,0.00011544,2]
[323484259,1714043445278,-500.0,0.00011544,2]
[323484260,1714043445288,-500.0,0.00011544,2]
[323484261,1714043445298,-500.0,0.00011544,2]
[323484262,1714043445307,-500.0,0.00011544,2]
[323484263,1714043445317,-500.0,0.00011544,2]
[323484264,1714043445327,-500.0,0.00011544,2]
[323484266,1714043445337,-500.0,0.00011544,2]
[323484268,1714043445346,-500.0,0.00011544,2]
[323484270,1714043445355,-2709.54,0.00011544,2]
[323484271,1714043445364,-500.0,0.00011544,2]
[323484272,1714043445373,-500.0,0.00011544,2]
[323484274,1714043445382,-208.4274383,0.00011544,2]
[323484276,1714043445391,-500.0,0.00011544,2]
[323484277,1714043445400,-500.0,0.00011544,2]
[323484279,1714043445415,-500.0,0.00011544,2]
[323484280,1714043445426,-500.0,0.00011544,2]
[323484281,1714043445435,-500.0,0.00011544,2]
[323484283,1714043445444,-500.0,0.00011544,2]
[323484284,1714043445452,-500.0,0.00011544,2]
[323484285,1714043445462,-553.85,0.00011544,2]
[323484286,1714043445470,-500.0,0.00011544,2]
[323484287,1714043445479,-1458.02,0.00011544,2]
[323484288,1714043445489,-500.0,0.00011544,2]
[323484289,1714043445497,-184.29812536,0.00011544,2]
[323484290,1714043445507,-500.0,0.00011544,2]
[323484291,1714043445516,-299.68584755,0.00011544,2]
[323484293,1714043445525,-500.0,0.00011544,2]
[323484294,1714043445534,-500.0,0.00011544,2]
[323484295,1714043445544,-500.0,0.00011544,2]
[323484297,1714043445554,-4059.84,0.00011544,2]
[323484298,1714043445563,-500.0,0.00011544,2]
[323484300,1714043445573,-197.37412221,0.00011544,2]
[323484302,1714043445584,-500.0,0.00011544,2]
[323484303,1714043445596,-500.0,0.00011544,2]
[323484304,1714043445607,-500.0,0.00011544,2]
[323484305,1714043445618,-500.0,0.00011544,2]
[323484306,1714043445629,-500.0,0.00011544,2]
[323484307,1714043445640,-500.0,0.00011544,2]
[323484308,1714043445650,-2422.96,0.00011544,2]
[323484309,1714043445664,-500.0,0.00011544,2]
[323484310,1714043445675,-500.0,0.00011544,2]
[323484311,1714043445684,-500.0,0.00011544,2]
[323484312,1714043445694,-500.0,0.00011544,2]
[323484313,1714043445703,-526.14,0.00011544,2]
[323484314,1714043445713,-901.76,0.00011544,2]
[323484315,1714043445722,-568.25,0.00011544,2]
[323484316,1714043445731,-530.59604602,0.00011544,2]
[323484317,1714043445741,-500.0,0.00011544,2]
[323484318,1714043445750,-500.0,0.00011544,2]
[323484319,1714043445760,-648.06189457,0.00011544,2]
[323484320,1714043445769,-519.94968374,0.00011544,2]
[323484321,1714043445779,-500.0,0.00011544,2]
[323484322,1714043445788,-500.0,0.00011544,2]
[323484323,1714043445797,-553.06,0.00011544,2]
[323484324,1714043445807,-500.0,0.00011544,2]
[323484325,1714043445817,-500.0,0.00011544,2]
[323484326,1714043445826,-500.0,0.00011544,2]
[323484327,1714043445835,-500.0,0.00011544,2]
[323484328,1714043445844,-2200.9,0.00011544,2]
[323484329,1714043445853,-523.89,0.00011544,2]
[323484330,1714043445862,-500.0,0.00011544,2]
[323484331,1714043445871,-11301.39,0.00011544,2]
[323484332,1714043445880,-363.59,0.00011544,2]
[323484333,1714043445889,-3085.76,0.00011544,2]
[323484334,1714043445898,-500.0,0.00011544,2]
[323484335,1714043445910,-900.83,0.00011544,2]
[323484336,1714043445919,-500.0,0.00011544,2]
[323484337,1714043445928,-500.0,0.00011544,2]
[323484338,1714043445937,-504.51,0.00011544,2]
[323484339,1714043445947,-500.0,0.00011544,2]
[323484340,1714043445956,-500.0,0.00011544,2]
[323484341,1714043445966,-500.0,0.00011544,2]
[323484342,1714043445975,-185.65416208,0.00011544,2]
[323484343,1714043445985,-500.0,0.00011544,2]
[323484344,1714043445994,-500.0,0.00011544,2]
[323484345,1714043446003,-500.0,0.00011544,2]
[323484346,1714043446013,-500.0,0.00011544,2]
[323484347,1714043446022,-500.0,0.00011544,2]
[323484348,1714043446032,-500.0,0.00011544,2]
[323484349,1714043446041,-500.0,0.00011544,2]
[323484350,1714043446050,-500.0,0.00011544,2]
[323484351,1714043446060,-500.0,0.00011544,2]
[323484352,1714043446070,-500.0,0.00011544,2]
[323484353,1714043446079,-500.0,0.00011544,2]
[323484354,1714043446090,-500.0,0.00011544,2]
[323484355,1714043446099,-500.0,0.00011544,2]
[323484356,1714043446109,-629.11,0.00011544,2]
[323484357,1714043446119,-500.0,0.00011544,2]
[323484358,1714043446128,-500.0,0.00011544,2]
[323484359,1714043446138,-500.0,0.00011544,2]
[323484360,1714043446147,-8267.54,0.00011544,2]
[323484361,1714043446160,-500.0,0.00011544,2]
[323484362,1714043446170,-564.52,0.00011544,2]
[323484363,1714043446179,-500.0,0.00011544,2]
[323484364,1714043446189,-500.0,0.00011544,2]
[323484365,1714043446199,-500.0,0.00011544,2]
[323484366,1714043446211,-500.0,0.00011544,2]
[323484367,1714043446221,-315.64436949,0.00011544,2]
[323484368,1714043446230,-325.21392625,0.00011544,2]
[323484369,1714043446240,-500.0,0.00011544,2]
[323484370,1714043446250,-500.0,0.00011544,2]
[323484371,1714043446260,-447.94,0.00011544,2]
[323484372,1714043446271,-638.62,0.00011544,2]
[323484373,1714043446281,-500.0,0.00011544,2]
[323484374,1714043446292,-1145.41,0.00011544,2]
[323484375,1714043446302,-500.83051556,0.00011544,2]
[323484376,1714043446313,-500.0,0.00011544,2]
[323484377,1714043446323,-500.0,0.00011544,2]
[323484378,1714043446333,-500.0,0.00011544,2]
[323484379,1714043446343,-423.10626976,0.00011544,2]
[323484380,1714043446353,-500.0,0.00011544,2]
[323484381,1714043446362,-500.0,0.00011544,2]
[323484382,1714043446373,-249.31,0.00011544,2]
[323484383,1714043446383,-500.0,0.00011544,2]
[323484384,1714043446392,-524.03427529,0.00011544,2]
[323484385,1714043446402,-500.0,0.00011544,2]
[323484386,1714043446417,-500.0,0.00011545,2]
[323484387,1714043446426,-960.68,0.00011545,2]
[323484388,1714043446437,-495.5,0.00011546,2]
[323484389,1714043446447,-150.0,0.00011589,2]
[323484390,1714043446457,-150.0,0.00011589,2]
[323484391,1714043446467,-172.48093964,0.000118,2]
[323484392,1714043446477,-1216.13636097,0.000118,2]
[323484393,1714043446487,-342.06207086,0.000118,2]
[323484394,1714043446496,-211.19786706,0.000118,2]
[323484395,1714043446506,-500.0,0.000118,4]
[323484396,1714043446516,-684.16,0.00011817,2]
[323484397,1714043446527,-500.0,0.00011817,2]
[323484398,1714043446537,-1882.93,0.00011817,2]
[323484399,1714043446547,-1199.05,0.00011817,2]
[323484400,1714043446557,-2400.88,0.00011817,2]
[323484401,1714043446567,-500.0,0.00011817,2]
[323484402,1714043446577,-500.0,0.00011817,2]
[323484403,1714043446588,-662.49,0.00011817,2]
[323484404,1714043446598,-2413.49,0.00011817,2]
[323484405,1714043446607,-1625.35,0.00011817,2]
[323484406,1714043446617,-500.0,0.00011817,2]
[323484407,1714043446627,-500.0,0.00011817,2]
[323484408,1714043446636,-500.0,0.00011817,2]
[323484409,1714043446645,-500.0,0.00011817,2]
[323484410,1714043446660,-5708.95,0.00011817,2]
[323484411,1714043446669,-1007.64,0.00011817,2]
[323484412,1714043446678,-500.0,0.00011817,2]
[323484413,1714043446688,-500.0,0.00011817,2]
[323484414,1714043446698,-500.0,0.00011817,2]
[323484415,1714043446707,-500.0,0.00011817,2]
[323484416,1714043446716,-500.0,0.00011817,2]
[323484417,1714043446726,-500.0,0.00011817,2]
[323484418,1714043446735,-180.87,0.00011817,2]
[323484419,1714043446744,-500.0,0.00011817,2]
[323484420,1714043446754,-500.0,0.00011817,2]
[323484421,1714043446763,-206.82,0.00011818,2]
[323484422,1714043446772,-475.45,0.00011818,2]
[323484423,1714043446781,-500.0,0.00011818,2]
[323484424,1714043446791,-533.97,0.00011818,2]
[323484425,1714043446801,-446.9,0.00011818,2]
[323484426,1714043446811,-632.48,0.00011818,2]
[323484427,1714043446820,-500.0,0.00011818,2]
[323484428,1714043446829,-505.13,0.00011818,2]
[323484429,1714043446839,-363.25,0.00011818,2]
[323484430,1714043446848,-234.42,0.00011818,2]
[323484431,1714043446858,-500.0,0.00011818,2]
[323484432,1714043446867,-500.0,0.00011818,2]
[323484433,1714043446877,-500.0,0.00011818,2]
[323484434,1714043446886,-488.0,0.00011818,2]
[323484435,1714043446895,-500.0,0.00011818,2]
[323484436,1714043447046,-189.68,0.00011818,2]
[323484437,1714043447083,-433.88,0.00011818,2]
[323484438,1714043447093,-611.81012403,0.00011818,2]
[323484439,1714043447103,-167.68,0.00011818,2]
[323484440,1714043447113,-500.0,0.00011818,2]
[323484441,1714043447123,-512.58,0.00011818,2]
[323484442,1714043447132,-500.0,0.00011818,2]
[323484443,1714043447141,-778.15,0.00011818,2]
[323484444,1714043447150,-452.11,0.00011818,2]
[323484445,1714043447162,-580.56,0.00011818,2]
[323484446,1714043447170,-500.0,0.00011818,2]
[323484447,1714043447180,-370.05,0.00011818,2]
[323484448,1714043447189,-500.0,0.00011818,2]
[323484449,1714043447198,-425.76,0.00011818,2]
[323484450,1714043447208,-500.0,0.00011818,2]
[323484451,1714043447220,-508.32353372,0.00011818,2]
[323484452,1714043447229,-500.0,0.00011818,2]
[323484453,1714043447239,-500.0,0.00011818,2]
[323484454,1714043447249,-245.71,0.00011818,2]
[323484455,1714043447258,-500.0,0.00011818,2]
[323484456,1714043447268,-198.2,0.00011818,2]
[323484457,1714043447277,-500.0,0.00011818,2]
[323484458,1714043447288,-500.0,0.00011818,2]
[323484459,1714043447297,-312.28,0.00011818,2]
[323484460,1714043447306,-500.0,0.00011818,2]
[323484461,1714043447316,-500.0,0.00011818,2]
[323484462,1714043447325,-263.23456761,0.00011818,2]
[323484463,1714043447335,-506.00049359,0.00011818,2]
[323484464,1714043447344,-856.99,0.00011818,2]
[323484465,1714043447354,-501.03621937,0.00011818,2]
[323484466,1714043447364,-502.54043009,0.00011818,2]
[323484467,1714043447373,-500.0,0.00011818,2]
[323484468,1714043447382,-501.53910829,0.00011818,2]
[323484469,1714043447391,-500.0,0.00011818,2]
[323484470,1714043447401,-1533.85,0.00011818,2]
[323484471,1714043447413,-500.0,0.00011818,2]
[323484472,1714043447422,-500.0,0.00011818,2]
[323484473,1714043447431,-500.0,0.00011818,2]
[323484474,1714043447441,-664.62,0.00011818,2]
[323484475,1714043447450,-863.12,0.00011818,2]
[323484476,1714043447459,-271.84,0.00011818,2]
[323484477,1714043447469,-500.0,0.00011818,2]
[323484478,1714043447478,-500.0,0.00011818,2]
[323484479,1714043447487,-573.81,0.00011818,2]
[323484480,1714043447497,-500.0,0.00011818,2]
[323484481,1714043447506,-529.0,0.00011818,2]
[323484482,1714043447516,-500.0,0.00011818,2]
[323484483,1714043447526,-500.0,0.00011818,2]
[323484484,1714043447536,-2709.54,0.00011818,2]
[323484485,1714043447546,-382.09,0.00011818,2]
[323484486,1714043447556,-500.0,0.00011818,2]
[323484487,1714043447565,-383.92,0.00011818,2]
[323484488,1714043447575,-574.50624301,0.00011818,2]
[323484489,1714043447585,-500.0,0.00011818,2]
[323484490,1714043447594,-500.0,0.00011818,2]
[323484491,1714043447604,-1458.02,0.00011818,2]
[323484492,1714043447613,-595.48,0.00011818,2]
[323484493,1714043447622,-274.91,0.00011818,2]
[323484494,1714043447632,-167.68,0.00011818,2]
[323484495,1714043447641,-4059.84,0.00011818,2]
[323484496,1714043447651,-500.0,0.00011818,2]
[323484497,1714043447662,-534.93,0.00011818,2]
[323484498,1714043447673,-2422.96,0.00011818,2]